[Event "Titled Tuesday Blitz March 14 Early 2023"]
[White "Karas, Marek"]
[Black "Rustemov, Alexander"]
[WhiteFideId "14928558"]
[BlackFideId "4119002"]
[WhiteElo "2233"]
[BlackElo "2916"]
[Result "0-1"]
[Round "02"]
[TimeControl "180+2"]
[Date "2023.03.14"]
[WhiteClock "0:00:02"]
[BlackClock "0:00:19"]

1. d4 {[%clk 0:03:00]}  d5 {[%clk 0:02:59]} 2. c4 {[%clk 0:02:54]}  c6 {[%clk 0:02:59]} 3. Nf3 {[%clk 0:02:54]}  Nf6 {[%clk 0:03:00]} 4. Nc3 {[%clk 0:02:55]}  a6 {[%clk 0:03:00]} 5. cxd5 {[%clk 0:02:53]}  cxd5 {[%clk 0:03:00]} 6. Bf4 {[%clk 0:02:54]}  Nc6 {[%clk 0:03:00]} 7. e3 {[%clk 0:02:54]}  Bg4 {[%clk 0:03:01]} 8. Be2 {[%clk 0:02:52]}  Rc8 {[%clk 0:03:01]} 9. O-O {[%clk 0:02:52]}  e6 {[%clk 0:03:02]} 10. Ne5 {[%clk 0:02:51]}  Bxe2 {[%clk 0:03:01]} 11. Qxe2 {[%clk 0:02:50]}  Be7 {[%clk 0:03:01]} 12. Rac1 {[%clk 0:02:46]}  O-O {[%clk 0:03:01]} 13. Nxc6 {[%clk 0:02:35]}  Rxc6 {[%clk 0:03:00]} 14. Qd3 {[%clk 0:02:30]}  Qa5 {[%clk 0:02:53]} 15. Rc2 {[%clk 0:02:16]}  Rfc8 {[%clk 0:02:52]} 16. Rfc1 {[%clk 0:02:15]}  Ne4 {[%clk 0:02:45]} 17. h3 {[%clk 0:02:06]}  Nxc3 {[%clk 0:02:41]} 18. Rxc3 {[%clk 0:01:58]}  Qxa2 {[%clk 0:02:32]} 19. Rxc6 {[%clk 0:01:56]}  Rxc6 {[%clk 0:02:32]} 20. Rxc6 {[%clk 0:01:50]}  bxc6 {[%clk 0:02:33]} 21. Qc3 {[%clk 0:01:47]}  Qa4 {[%clk 0:02:27]} 22. b3 {[%clk 0:01:41]}  Qb5 {[%clk 0:02:26]} 23. Qc2 {[%clk 0:01:32]}  f6 {[%clk 0:02:16]} 24. Bg3 {[%clk 0:01:28]}  g6 {[%clk 0:02:14]} 25. Kh2 {[%clk 0:01:16]}  Kf7 {[%clk 0:02:13]} 26. Kg1 {[%clk 0:01:12]}  h5 {[%clk 0:02:10]} 27. Bc7 {[%clk 0:01:08]}  c5 {[%clk 0:02:08]} 28. dxc5 {[%clk 0:01:07]}  Qxc5 {[%clk 0:02:08]} 29. Qxc5 {[%clk 0:01:07]}  Bxc5 {[%clk 0:02:09]} 30. Kf1 {[%clk 0:01:07]}  Ke7 {[%clk 0:02:07]} 31. Ke2 {[%clk 0:01:07]}  Kd7 {[%clk 0:02:07]} 32. Ba5 {[%clk 0:01:07]}  e5 {[%clk 0:02:00]} 33. Kd3 {[%clk 0:01:05]}  e4+ {[%clk 0:01:58]} 34. Ke2 {[%clk 0:01:03]}  f5 {[%clk 0:01:57]} 35. Bc3 {[%clk 0:00:57]}  g5 {[%clk 0:01:53]} 36. Bf6 {[%clk 0:00:55]}  g4 {[%clk 0:01:53]} 37. Be5 {[%clk 0:00:54]}  Ke6 {[%clk 0:01:51]} 38. Bc3 {[%clk 0:00:50]}  Bd6 {[%clk 0:01:35]} 39. hxg4 {[%clk 0:00:48]}  fxg4 {[%clk 0:01:35]} 40. g3 {[%clk 0:00:48]}  Be5 {[%clk 0:01:26]} 41. Ba5 {[%clk 0:00:46]}  d4 {[%clk 0:01:23]} 42. exd4 {[%clk 0:00:47]}  Bxd4 {[%clk 0:01:24]} 43. Bd2 {[%clk 0:00:45]}  Kd5 {[%clk 0:01:24]} 44. Bc1 {[%clk 0:00:43]}  Bf6 {[%clk 0:01:16]} 45. Be3 {[%clk 0:00:41]}  Kc6 {[%clk 0:01:14]} 46. Bd2 {[%clk 0:00:40]}  Bd4 {[%clk 0:01:14]} 47. Be1 {[%clk 0:00:38]}  Kb5 {[%clk 0:01:15]} 48. Bd2 {[%clk 0:00:38]}  Bc5 {[%clk 0:01:14]} 49. Bc3 {[%clk 0:00:36]}  Bb4 {[%clk 0:01:05]} 50. Bf6 {[%clk 0:00:31]}  Bc5 {[%clk 0:01:00]} 51. Bc3 {[%clk 0:00:30]}  Kc6 {[%clk 0:01:01]} 52. Bd2 {[%clk 0:00:30]}  Bd4 {[%clk 0:00:59]} 53. Bb4 {[%clk 0:00:28]}  Kd5 {[%clk 0:00:58]} 54. Bd2 {[%clk 0:00:26]}  Ke6 {[%clk 0:00:58]} 55. Bb4 {[%clk 0:00:25]}  Kf5 {[%clk 0:00:59]} 56. Bd2 {[%clk 0:00:25]}  Bc5 {[%clk 0:00:57]} 57. Bc1 {[%clk 0:00:24]}  Bb6 {[%clk 0:00:54]} 58. Bd2 {[%clk 0:00:24]}  Bd8 {[%clk 0:00:53]} 59. Bc1 {[%clk 0:00:24]}  h4 {[%clk 0:00:53]} 60. gxh4 {[%clk 0:00:23]}  Bxh4 {[%clk 0:00:53]} 61. Be3 {[%clk 0:00:23]}  Bg5 {[%clk 0:00:53]} 62. Bd4 {[%clk 0:00:23]}  Bf4 {[%clk 0:00:53]} 63. Bc3 {[%clk 0:00:22]}  Ke6 {[%clk 0:00:53]} 64. Bd4 {[%clk 0:00:21]}  Kd5 {[%clk 0:00:54]} 65. Bc3 {[%clk 0:00:22]}  Be5 {[%clk 0:00:54]} 66. Be1 {[%clk 0:00:13]}  Bd4 {[%clk 0:00:51]} 67. Bb4 {[%clk 0:00:12]}  Bb6 {[%clk 0:00:49]} 68. Bc3 {[%clk 0:00:12]}  e3 {[%clk 0:00:47]} 69. fxe3 {[%clk 0:00:11]}  Ke4 {[%clk 0:00:47]} 70. Bd2 {[%clk 0:00:10]}  g3 {[%clk 0:00:47]} 71. Bc1 {[%clk 0:00:09]}  Ba5 {[%clk 0:00:47]} 72. Bb2 {[%clk 0:00:06]}  Bd2 {[%clk 0:00:45]} 73. Bd4 {[%clk 0:00:06]}  Bb4 {[%clk 0:00:32]} 74. Bb6 {[%clk 0:00:06]}  Bd6 {[%clk 0:00:29]} 75. Bd4 {[%clk 0:00:07]}  Be7 {[%clk 0:00:22]} 76. Bb6 {[%clk 0:00:07]}  Bh4 {[%clk 0:00:22]} 77. Bc7 {[%clk 0:00:02]}  g2 {[%clk 0:00:20]} 78. Bh2 {[%clk 0:00:02]}  a5 {[%clk 0:00:19]} 79. Bg1 {[%clk 0:00:02]}  Bg3 {[%clk 0:00:19]} 0-1


[Site "https://www.chess.com"]

[Event "Titled Tuesday Blitz March 14 Early 2023"]
[White "Jaskolka, Tomasz"]
[Black "Cornette, Matthieu"]
[WhiteFideId "1170791"]
[BlackFideId "620084"]
[WhiteElo "2155"]
[BlackElo "2478"]
[Result "1-0"]
[Round "02"]
[TimeControl "180+2"]
[Date "2023.03.14"]
[WhiteClock "0:00:09"]
[BlackClock "0:00:02"]

1. d4 {[%clk 0:03:00]}  Nf6 {[%clk 0:03:00]} 2. c4 {[%clk 0:02:59]}  b6 {[%clk 0:03:01]} 3. Nc3 {[%clk 0:02:54]}  Bb7 {[%clk 0:03:01]} 4. f3 {[%clk 0:02:54]}  d5 {[%clk 0:02:54]} 5. cxd5 {[%clk 0:02:54]}  Nxd5 {[%clk 0:02:55]} 6. e4 {[%clk 0:02:55]}  Nxc3 {[%clk 0:02:56]} 7. bxc3 {[%clk 0:02:55]}  e5 {[%clk 0:02:56]} 8. Be3 {[%clk 0:02:53]}  exd4 {[%clk 0:02:54]} 9. Bxd4 {[%clk 0:02:42]}  c5 {[%clk 0:02:43]} 10. Be3 {[%clk 0:02:42]}  Qh4+ {[%clk 0:02:27]} 11. g3 {[%clk 0:02:39]}  Qf6 {[%clk 0:02:27]} 12. Qc2 {[%clk 0:02:30]}  Nc6 {[%clk 0:02:26]} 13. Rd1 {[%clk 0:02:29]}  Be7 {[%clk 0:02:16]} 14. Be2 {[%clk 0:02:18]}  h5 {[%clk 0:01:54]} 15. Nh3 {[%clk 0:01:56]}  h4 {[%clk 0:01:53]} 16. Bg5 {[%clk 0:01:52]}  Qe5 {[%clk 0:01:36]} 17. Bf4 {[%clk 0:01:33]}  Qe6 {[%clk 0:01:26]} 18. g4 {[%clk 0:01:20]}  O-O {[%clk 0:01:24]} 19. O-O {[%clk 0:01:17]}  Rad8 {[%clk 0:01:14]} 20. Kg2 {[%clk 0:01:17]}  Ne5 {[%clk 0:01:15]} 21. Qb3 {[%clk 0:01:05]}  c4 {[%clk 0:01:08]} 22. Qb5 {[%clk 0:01:03]}  Bc5 {[%clk 0:00:49]} 23. Bxe5 {[%clk 0:00:46]}  Qxe5 {[%clk 0:00:50]} 24. Qxc4 {[%clk 0:00:46]}  Bd6 {[%clk 0:00:40]} 25. Rh1 {[%clk 0:00:41]}  Rc8 {[%clk 0:00:40]} 26. Qd4 {[%clk 0:00:39]}  Bb8 {[%clk 0:00:28]} 27. Qxe5 {[%clk 0:00:33]}  Bxe5 {[%clk 0:00:29]} 28. c4 {[%clk 0:00:32]}  Rfd8 {[%clk 0:00:24]} 29. Rxd8+ {[%clk 0:00:29]}  Rxd8 {[%clk 0:00:23]} 30. Rd1 {[%clk 0:00:30]}  Rxd1 {[%clk 0:00:20]} 31. Bxd1 {[%clk 0:00:30]}  Ba6 {[%clk 0:00:20]} 32. Be2 {[%clk 0:00:29]}  Kf8 {[%clk 0:00:20]} 33. f4 {[%clk 0:00:27]}  Bd4 {[%clk 0:00:20]} 34. Ng5 {[%clk 0:00:24]}  Ke7 {[%clk 0:00:17]} 35. Nf3 {[%clk 0:00:24]}  Be3 {[%clk 0:00:18]} 36. f5 {[%clk 0:00:19]}  Bb7 {[%clk 0:00:15]} 37. Bd3 {[%clk 0:00:18]}  Kd6 {[%clk 0:00:16]} 38. Nxh4 {[%clk 0:00:19]}  Kc5 {[%clk 0:00:16]} 39. Kf3 {[%clk 0:00:19]}  Kd4 {[%clk 0:00:15]} 40. Bb1 {[%clk 0:00:17]}  Bg5 {[%clk 0:00:15]} 41. Ng2 {[%clk 0:00:17]}  Kxc4 {[%clk 0:00:16]} 42. h4 {[%clk 0:00:17]}  Bd2 {[%clk 0:00:14]} 43. g5 {[%clk 0:00:15]}  Kc3 {[%clk 0:00:13]} 44. Kg4 {[%clk 0:00:14]}  Ba6 {[%clk 0:00:10]} 45. e5 {[%clk 0:00:12]}  Kd4 {[%clk 0:00:07]} 46. e6 {[%clk 0:00:08]}  fxe6 {[%clk 0:00:05]} 47. fxe6 {[%clk 0:00:08]}  Be2+ {[%clk 0:00:05]} 48. Kf5 {[%clk 0:00:07]}  Bb5 {[%clk 0:00:02]} 49. Kg6 {[%clk 0:00:04]}  Bc4 {[%clk 0:00:01]} 50. e7 {[%clk 0:00:05]}  Bb5 {[%clk 0:00:01]} 51. Kf7 {[%clk 0:00:05]}  Bb4 {[%clk 0:00:02]} 52. e8=Q {[%clk 0:00:05]}  Bxe8+ {[%clk 0:00:02]} 53. Kxe8 {[%clk 0:00:06]}  Kc3 {[%clk 0:00:02]} 54. Kf7 {[%clk 0:00:07]}  Kb2 {[%clk 0:00:02]} 55. Kxg7 {[%clk 0:00:07]}  Bc3+ {[%clk 0:00:03]} 56. Kg8 {[%clk 0:00:06]}  Kxb1 {[%clk 0:00:04]} 57. g6 {[%clk 0:00:07]}  Kxa2 {[%clk 0:00:04]} 58. g7 {[%clk 0:00:07]}  b5 {[%clk 0:00:05]} 59. h5 {[%clk 0:00:08]}  b4 {[%clk 0:00:04]} 60. Ne3 {[%clk 0:00:07]}  b3 {[%clk 0:00:04]} 61. Nc4 {[%clk 0:00:07]}  b2 {[%clk 0:00:03]} 62. Nxb2 {[%clk 0:00:07]}  Kxb2 {[%clk 0:00:03]} 63. h6 {[%clk 0:00:08]}  a5 {[%clk 0:00:03]} 64. h7 {[%clk 0:00:08]}  a4 {[%clk 0:00:04]} 65. h8=Q {[%clk 0:00:09]}  a3 {[%clk 0:00:05]} 66. Qh2+ {[%clk 0:00:09]}  Kb3 {[%clk 0:00:05]} 67. Qg1 {[%clk 0:00:08]}  a2 {[%clk 0:00:05]} 68. Kf7 {[%clk 0:00:09]}  Bxg7 {[%clk 0:00:02]} 69. Qxg7 {[%clk 0:00:08]}  Kc2 {[%clk 0:00:02]} 70. Qa1 {[%clk 0:00:09]} 1-0


[Site "https://www.chess.com"]

[Event "Titled Tuesday Blitz March 14 Early 2023"]
[White "Volkov, Sergey"]
[Black "Girsh, Daniel"]
[WhiteFideId "4122763"]
[BlackFideId "30949190"]
[WhiteElo "2401"]
[BlackElo "2075"]
[Result "1/2-1/2"]
[Round "02"]
[TimeControl "180+2"]
[Date "2023.03.14"]
[WhiteClock "0:00:09"]
[BlackClock "0:00:08"]

1. d4 {[%clk 0:03:00]}  Nf6 {[%clk 0:02:59]} 2. c4 {[%clk 0:03:00]}  g6 {[%clk 0:03:00]} 3. Nc3 {[%clk 0:03:00]}  Bg7 {[%clk 0:03:01]} 4. e4 {[%clk 0:03:00]}  d6 {[%clk 0:03:01]} 5. Nf3 {[%clk 0:03:00]}  O-O {[%clk 0:03:02]} 6. Be2 {[%clk 0:03:00]}  e5 {[%clk 0:03:02]} 7. Be3 {[%clk 0:03:00]}  exd4 {[%clk 0:02:59]} 8. Nxd4 {[%clk 0:02:59]}  Re8 {[%clk 0:03:00]} 9. f3 {[%clk 0:02:59]}  c6 {[%clk 0:03:01]} 10. Qd2 {[%clk 0:02:59]}  d5 {[%clk 0:03:01]} 11. exd5 {[%clk 0:02:59]}  cxd5 {[%clk 0:03:01]} 12. O-O-O {[%clk 0:02:59]}  Nc6 {[%clk 0:02:57]} 13. Rhe1 {[%clk 0:02:50]}  Ne5 {[%clk 0:02:43]} 14. cxd5 {[%clk 0:02:32]}  Bd7 {[%clk 0:02:17]} 15. f4 {[%clk 0:02:15]}  Neg4 {[%clk 0:02:10]} 16. Bg1 {[%clk 0:02:14]}  Ne4 {[%clk 0:01:55]} 17. Nxe4 {[%clk 0:02:12]}  Rxe4 {[%clk 0:01:56]} 18. Ne6 {[%clk 0:02:05]}  Qc8+ {[%clk 0:01:08]} 19. Kb1 {[%clk 0:02:02]}  Bxe6 {[%clk 0:01:02]} 20. dxe6 {[%clk 0:02:00]}  f5 {[%clk 0:00:46]} 21. Bxg4 {[%clk 0:01:54]}  Rxe1 {[%clk 0:00:46]} 22. Qxe1 {[%clk 0:01:41]}  fxg4 {[%clk 0:00:47]} 23. e7 {[%clk 0:01:41]}  Qf5+ {[%clk 0:00:46]} 24. Ka1 {[%clk 0:01:36]}  Re8 {[%clk 0:00:47]} 25. Bd4 {[%clk 0:01:17]}  Qc2 {[%clk 0:00:20]} 26. Bxg7 {[%clk 0:01:09]}  Rxe7 {[%clk 0:00:20]} 27. Be5 {[%clk 0:01:08]}  g5 {[%clk 0:00:18]} 28. Rc1 {[%clk 0:01:01]}  Qxg2 {[%clk 0:00:18]} 29. Qg3 {[%clk 0:00:51]}  Qe2 {[%clk 0:00:14]} 30. Qb3+ {[%clk 0:00:41]}  Kf8 {[%clk 0:00:10]} 31. Rc8+ {[%clk 0:00:34]}  Re8 {[%clk 0:00:09]} 32. Rxe8+ {[%clk 0:00:33]}  Kxe8 {[%clk 0:00:08]} 33. Qg8+ {[%clk 0:00:33]}  Kd7 {[%clk 0:00:07]} 34. Qxh7+ {[%clk 0:00:32]}  Kc6 {[%clk 0:00:07]} 35. Qg6+ {[%clk 0:00:31]}  Kb5 {[%clk 0:00:07]} 36. Qe8+ {[%clk 0:00:22]}  Ka6 {[%clk 0:00:06]} 37. Qa4+ {[%clk 0:00:21]}  Kb6 {[%clk 0:00:07]} 38. Qd4+ {[%clk 0:00:19]}  Ka6 {[%clk 0:00:06]} 39. a3 {[%clk 0:00:18]}  gxf4 {[%clk 0:00:05]} 40. Bxf4 {[%clk 0:00:17]}  b5 {[%clk 0:00:05]} 41. Qd6+ {[%clk 0:00:16]}  Ka5 {[%clk 0:00:05]} 42. Qc7+ {[%clk 0:00:15]}  Ka4 {[%clk 0:00:05]} 43. Qxa7+ {[%clk 0:00:14]}  Kb3 {[%clk 0:00:05]} 44. Qf7+ {[%clk 0:00:14]}  Kc2 {[%clk 0:00:06]} 45. Qf6 {[%clk 0:00:14]}  Qf1+ {[%clk 0:00:05]} 46. Ka2 {[%clk 0:00:11]}  Qc4+ {[%clk 0:00:06]} 47. Ka1 {[%clk 0:00:11]}  Qf1+ {[%clk 0:00:06]} 48. Ka2 {[%clk 0:00:09]}  Qc4+ {[%clk 0:00:07]} 49. Ka1 {[%clk 0:00:09]}  Qf1+ {[%clk 0:00:08]} 1/2-1/2


[Site "https://www.chess.com"]

[Event "Titled Tuesday Blitz March 14 Early 2023"]
[White "Rakhmatullaev, Almas"]
[Black "Manukian, Artak"]
[WhiteFideId "14205793"]
[BlackFideId "13301373"]
[WhiteElo "2221"]
[BlackElo "2130"]
[Result "1-0"]
[Round "02"]
[TimeControl "180+2"]
[Date "2023.03.14"]
[WhiteClock "0:00:25"]
[BlackClock "0:01:24"]

1. e4 {[%clk 0:03:00]}  c6 {[%clk 0:02:51]} 2. Nf3 {[%clk 0:03:00]}  d5 {[%clk 0:02:52]} 3. d3 {[%clk 0:03:00]}  Bg4 {[%clk 0:02:51]} 4. Nbd2 {[%clk 0:02:56]}  e5 {[%clk 0:02:48]} 5. h3 {[%clk 0:02:54]}  Bxf3 {[%clk 0:02:48]} 6. Qxf3 {[%clk 0:02:55]}  Nf6 {[%clk 0:02:41]} 7. g3 {[%clk 0:02:55]}  d4 {[%clk 0:02:39]} 8. Bg2 {[%clk 0:02:52]}  c5 {[%clk 0:02:38]} 9. O-O {[%clk 0:02:50]}  Nc6 {[%clk 0:02:38]} 10. Qe2 {[%clk 0:02:47]}  Bd6 {[%clk 0:02:36]} 11. f4 {[%clk 0:02:47]}  O-O {[%clk 0:02:34]} 12. Nf3 {[%clk 0:02:41]}  Nd7 {[%clk 0:02:27]} 13. Nh4 {[%clk 0:02:37]}  g6 {[%clk 0:02:25]} 14. f5 {[%clk 0:02:34]}  b5 {[%clk 0:02:23]} 15. Qf3 {[%clk 0:02:23]}  Nb4 {[%clk 0:02:11]} 16. Rf2 {[%clk 0:02:14]}  c4 {[%clk 0:02:11]} 17. Bh6 {[%clk 0:02:13]}  cxd3 {[%clk 0:02:07]} 18. Bxf8 {[%clk 0:02:05]}  Qxf8 {[%clk 0:02:07]} 19. cxd3 {[%clk 0:02:04]}  Nc5 {[%clk 0:02:06]} 20. Bf1 {[%clk 0:01:54]}  Be7 {[%clk 0:01:57]} 21. a3 {[%clk 0:01:47]}  Nb3 {[%clk 0:01:50]} 22. axb4 {[%clk 0:01:29]}  Nxa1 {[%clk 0:01:49]} 23. Qd1 {[%clk 0:01:29]}  Bxh4 {[%clk 0:01:47]} 24. gxh4 {[%clk 0:01:27]}  Qxb4 {[%clk 0:01:47]} 25. Qxa1 {[%clk 0:01:26]}  a5 {[%clk 0:01:46]} 26. Qc1 {[%clk 0:01:25]}  a4 {[%clk 0:01:44]} 27. f6 {[%clk 0:01:22]}  Qf8 {[%clk 0:01:39]} 28. h5 {[%clk 0:01:17]}  b4 {[%clk 0:01:37]} 29. hxg6 {[%clk 0:01:17]}  hxg6 {[%clk 0:01:36]} 30. h4 {[%clk 0:01:08]}  Kh7 {[%clk 0:01:30]} 31. h5 {[%clk 0:01:03]}  Qh6 {[%clk 0:01:30]} 32. hxg6+ {[%clk 0:00:56]}  Qxg6+ {[%clk 0:01:29]} 33. Kh1 {[%clk 0:00:56]}  Rh8 {[%clk 0:01:26]} 34. Rh2+ {[%clk 0:00:30]}  Kg8 {[%clk 0:01:24]} 35. Qc8# {[%clk 0:00:25]} 1-0


[Site "https://www.chess.com"]

[Event "Titled Tuesday Blitz March 14 Early 2023"]
[White "Bas Mas, Jose Joaquin"]
[Black "Papasimakopoulos, Alexandros"]
[WhiteFideId "22219064"]
[BlackFideId "4244125"]
[WhiteElo "2233"]
[BlackElo "2359"]
[Result "1/2-1/2"]
[Round "02"]
[TimeControl "180+2"]
[Date "2023.03.14"]
[WhiteClock "0:00:29"]
[BlackClock "0:01:12"]

1. e4 {[%clk 0:03:00]}  e6 {[%clk 0:02:58]} 2. d4 {[%clk 0:03:00]}  d5 {[%clk 0:02:59]} 3. e5 {[%clk 0:03:00]}  a6 {[%clk 0:02:55]} 4. c3 {[%clk 0:03:00]}  Bd7 {[%clk 0:02:55]} 5. Nf3 {[%clk 0:03:00]}  Bb5 {[%clk 0:02:55]} 6. Nbd2 {[%clk 0:02:55]}  c5 {[%clk 0:02:51]} 7. a4 {[%clk 0:02:47]}  Bxf1 {[%clk 0:02:50]} 8. Kxf1 {[%clk 0:02:45]}  Nc6 {[%clk 0:02:49]} 9. h4 {[%clk 0:02:45]}  cxd4 {[%clk 0:02:41]} 10. cxd4 {[%clk 0:02:44]}  Nge7 {[%clk 0:02:39]} 11. h5 {[%clk 0:02:37]}  Nf5 {[%clk 0:02:35]} 12. Nb3 {[%clk 0:02:36]}  Be7 {[%clk 0:02:35]} 13. g4 {[%clk 0:02:34]}  Nh4 {[%clk 0:02:35]} 14. Nxh4 {[%clk 0:02:16]}  Bxh4 {[%clk 0:02:35]} 15. Kg2 {[%clk 0:02:17]}  Be7 {[%clk 0:02:30]} 16. Be3 {[%clk 0:02:10]}  f6 {[%clk 0:02:29]} 17. h6 {[%clk 0:02:02]}  g6 {[%clk 0:02:22]} 18. exf6 {[%clk 0:01:58]}  Bxf6 {[%clk 0:02:21]} 19. Nc5 {[%clk 0:01:58]}  Qe7 {[%clk 0:02:17]} 20. Ra3 {[%clk 0:01:27]}  O-O {[%clk 0:02:16]} 21. Qd2 {[%clk 0:01:22]}  Rad8 {[%clk 0:02:14]} 22. Rb3 {[%clk 0:01:20]}  Rb8 {[%clk 0:02:00]} 23. Rc1 {[%clk 0:01:14]}  Qd6 {[%clk 0:01:55]} 24. Nxb7 {[%clk 0:01:10]}  Qc7 {[%clk 0:01:46]} 25. Nc5 {[%clk 0:01:10]}  Rxb3 {[%clk 0:01:46]} 26. Nxb3 {[%clk 0:01:09]}  Qd6 {[%clk 0:01:44]} 27. Bf4 {[%clk 0:01:00]}  e5 {[%clk 0:01:40]} 28. dxe5 {[%clk 0:00:55]}  Nxe5 {[%clk 0:01:34]} 29. Rd1 {[%clk 0:00:55]}  Rb8 {[%clk 0:01:27]} 30. Qxd5+ {[%clk 0:00:51]}  Qxd5+ {[%clk 0:01:27]} 31. Rxd5 {[%clk 0:00:51]}  Rxb3 {[%clk 0:01:27]} 32. Bxe5 {[%clk 0:00:51]}  Bxe5 {[%clk 0:01:27]} 33. Rxe5 {[%clk 0:00:52]}  Rxb2 {[%clk 0:01:26]} 34. Re8+ {[%clk 0:00:50]}  Kf7 {[%clk 0:01:26]} 35. Rh8 {[%clk 0:00:51]}  g5 {[%clk 0:01:26]} 36. Rxh7+ {[%clk 0:00:51]}  Kg6 {[%clk 0:01:26]} 37. Ra7 {[%clk 0:00:50]}  Kxh6 {[%clk 0:01:26]} 38. Rxa6+ {[%clk 0:00:51]}  Kg7 {[%clk 0:01:27]} 39. Kg3 {[%clk 0:00:50]}  Rb3+ {[%clk 0:01:26]} 40. f3 {[%clk 0:00:50]}  Rb2 {[%clk 0:01:27]} 41. a5 {[%clk 0:00:50]}  Ra2 {[%clk 0:01:27]} 42. Ra7+ {[%clk 0:00:51]}  Kg6 {[%clk 0:01:27]} 43. a6 {[%clk 0:00:50]}  Kh6 {[%clk 0:01:25]} 44. Ra8 {[%clk 0:00:50]}  Kg6 {[%clk 0:01:24]} 45. a7 {[%clk 0:00:44]}  Kg7 {[%clk 0:01:23]} 46. Kh3 {[%clk 0:00:41]}  Kh7 {[%clk 0:01:23]} 47. Kg3 {[%clk 0:00:35]}  Kg7 {[%clk 0:01:23]} 48. f4 {[%clk 0:00:34]}  Ra3+ {[%clk 0:01:22]} 49. Kf2 {[%clk 0:00:35]}  gxf4 {[%clk 0:01:22]} 50. g5 {[%clk 0:00:35]}  Kh7 {[%clk 0:01:19]} 51. g6+ {[%clk 0:00:34]}  Kg7 {[%clk 0:01:19]} 52. Ke2 {[%clk 0:00:34]}  Re3+ {[%clk 0:01:18]} 53. Kf2 {[%clk 0:00:34]}  Ra3 {[%clk 0:01:18]} 54. Kf1 {[%clk 0:00:30]}  Ra2 {[%clk 0:01:18]} 55. Ke1 {[%clk 0:00:30]}  Ra6 {[%clk 0:01:12]} 56. Kf2 {[%clk 0:00:29]}  Ra3 {[%clk 0:01:12]} 1/2-1/2


[Site "https://www.chess.com"]

[Event "Titled Tuesday Blitz March 14 Early 2023"]
[White "Mortazavi, Ali"]
[Black "Steinberg, Nitzan"]
[WhiteFideId "401323"]
[BlackFideId "2801795"]
[WhiteElo "2339"]
[BlackElo "2486"]
[Result "0-1"]
[Round "02"]
[TimeControl "180+2"]
[Date "2023.03.14"]
[WhiteClock "0:00:19"]
[BlackClock "0:00:17"]

1. e4 {[%clk 0:03:00]}  c5 {[%clk 0:02:59]} 2. Nc3 {[%clk 0:03:00]}  e6 {[%clk 0:03:00]} 3. Nf3 {[%clk 0:03:00]}  Nc6 {[%clk 0:02:59]} 4. g3 {[%clk 0:03:01]}  Qc7 {[%clk 0:02:58]} 5. Bg2 {[%clk 0:03:01]}  Nf6 {[%clk 0:02:58]} 6. O-O {[%clk 0:03:02]}  a6 {[%clk 0:02:58]} 7. a4 {[%clk 0:03:01]}  Be7 {[%clk 0:02:54]} 8. Re1 {[%clk 0:03:01]}  d6 {[%clk 0:02:54]} 9. d3 {[%clk 0:02:55]}  h6 {[%clk 0:02:54]} 10. Bf4 {[%clk 0:02:48]}  e5 {[%clk 0:02:54]} 11. Bd2 {[%clk 0:02:46]}  Be6 {[%clk 0:02:54]} 12. a5 {[%clk 0:02:31]}  O-O {[%clk 0:02:49]} 13. Na4 {[%clk 0:02:25]}  Nxa5 {[%clk 0:02:39]} 14. Nxc5 {[%clk 0:02:25]}  dxc5 {[%clk 0:02:39]} 15. Bxa5 {[%clk 0:02:24]}  b6 {[%clk 0:02:39]} 16. Bc3 {[%clk 0:02:25]}  Nd7 {[%clk 0:02:40]} 17. b3 {[%clk 0:02:24]}  Bf6 {[%clk 0:02:29]} 18. h3 {[%clk 0:02:18]}  Nb8 {[%clk 0:02:28]} 19. Nh2 {[%clk 0:02:17]}  Nc6 {[%clk 0:02:28]} 20. Ng4 {[%clk 0:02:18]}  Be7 {[%clk 0:02:26]} 21. Ne3 {[%clk 0:02:17]}  Rfd8 {[%clk 0:02:19]} 22. Nd5 {[%clk 0:02:16]}  Qb7 {[%clk 0:02:19]} 23. Rf1 {[%clk 0:02:07]}  Bd6 {[%clk 0:02:16]} 24. f4 {[%clk 0:01:59]}  exf4 {[%clk 0:02:05]} 25. gxf4 {[%clk 0:01:56]}  Nd4 {[%clk 0:01:54]} 26. Ne3 {[%clk 0:01:51]}  Qc8 {[%clk 0:01:38]} 27. e5 {[%clk 0:01:37]}  Be7 {[%clk 0:01:38]} 28. Bxa8 {[%clk 0:01:26]}  Qxa8 {[%clk 0:01:38]} 29. Bxd4 {[%clk 0:01:26]}  cxd4 {[%clk 0:01:27]} 30. Ng4 {[%clk 0:01:26]}  Bf5 {[%clk 0:01:10]} 31. Qf3 {[%clk 0:01:25]}  Qc8 {[%clk 0:01:10]} 32. Qg2 {[%clk 0:01:05]}  Kh7 {[%clk 0:01:04]} 33. Rac1 {[%clk 0:00:55]}  Bb4 {[%clk 0:00:59]} 34. Kh2 {[%clk 0:00:51]}  h5 {[%clk 0:00:58]} 35. Nf2 {[%clk 0:00:49]}  Bd2 {[%clk 0:00:58]} 36. Rcd1 {[%clk 0:00:40]}  Bxf4+ {[%clk 0:00:50]} 37. Kh1 {[%clk 0:00:40]}  Bxe5 {[%clk 0:00:49]} 38. Rg1 {[%clk 0:00:36]}  h4 {[%clk 0:00:35]} 39. Qf3 {[%clk 0:00:27]}  g6 {[%clk 0:00:31]} 40. Rde1 {[%clk 0:00:23]}  Bg3 {[%clk 0:00:28]} 41. Re7 {[%clk 0:00:21]}  Rd7 {[%clk 0:00:28]} 42. Re2 {[%clk 0:00:19]}  Rd6 {[%clk 0:00:18]} 43. Ne4 {[%clk 0:00:19]}  Bxe4 {[%clk 0:00:17]} 0-1


[Site "https://www.chess.com"]